[Event "Championnat d'Europe Rapide"]
[Date "2024.12.07"]
[White "Grigorov, Grigor"]
[Black "Perunovic, Miodrag"]
[WhiteElo "2497"]
[BlackElo "2357"]
[Round "5.29"]
[Result "1-0"]
[TimeControl "900+10"]

1. d4 {[%emt 00:00:03] [%clk 00:15:18]} Nf6 {[%emt 00:00:01] [%clk 00:15:18]} 2.
Nf3 {[%emt 00:00:02] [%clk 00:15:26]} e6 {[%emt 00:00:04] [%clk 00:15:26]} 3.
Bg5 {[%clk 00:15:34]} h6 {[%emt 00:00:02] [%clk 00:15:34]} 4. Bh4 {[%emt
00:00:02] [%clk 00:15:42]} c5 {[%emt 00:00:08] [%clk 00:15:37]} 5. e3 {[%emt
00:00:02] [%clk 00:15:49]} cxd4 {[%emt 00:00:04] [%clk 00:15:44]} 6. exd4 {[%emt
00:00:04] [%clk 00:15:55]} b6 {[%emt 00:00:01] [%clk 00:15:52]} 7. Nbd2 {[%emt
00:00:13] [%clk 00:15:52]} Bb7 {[%emt 00:00:03] [%clk 00:15:59]} 8. c3 {[%emt
00:00:16] [%clk 00:15:46]} Be7 {[%emt 00:00:02] [%clk 00:16:07]} 9. Bxf6 {[%emt
00:00:07] [%clk 00:15:50]} Bxf6 {[%emt 00:00:02] [%clk 00:16:14]} 10. Bd3 {[%emt
00:00:02] [%clk 00:15:58]} d6 {[%emt 00:00:42] [%clk 00:15:42]} 11. Qe2 {[%emt
00:00:04] [%clk 00:16:04]} Nd7 {[%emt 00:00:04] [%clk 00:15:48]} 12. O-O-O
{[%emt 00:00:26] [%clk 00:15:48]} Qc7 {[%emt 00:00:04] [%clk 00:15:55]} 13. Kb1
{[%emt 00:00:10] [%clk 00:15:48]} O-O-O {[%emt 00:00:04] [%clk 00:16:00]} 14.
Ne4 {[%emt 00:00:23] [%clk 00:15:36]} Kb8 {[%emt 00:00:02] [%clk 00:16:08]} 15.
h4 {[%emt 00:00:20] [%clk 00:15:25]} h5 {[%emt 00:00:58] [%clk 00:15:21]} 16.
Rhe1 {[%emt 00:00:27] [%clk 00:15:08]} g6 {[%emt 00:00:12] [%clk 00:15:20]} 17.
g3 {[%emt 00:00:20] [%clk 00:14:57]} Be7 {[%emt 00:00:18] [%clk 00:15:12]} 18.
Neg5 {[%emt 00:00:29] [%clk 00:14:38]} Bxg5 {[%emt 00:00:17] [%clk 00:15:05]}
19. Nxg5 {[%emt 00:00:06] [%clk 00:14:42]} Nf6 {[%emt 00:01:29] [%clk 00:13:47]}
20. Qe3 {[%emt 00:00:54] [%clk 00:13:58]} Nd5 {[%emt 00:00:04] [%clk 00:13:53]}
21. Qd2 {[%emt 00:00:11] [%clk 00:13:56]} e5 {[%emt 00:02:22] [%clk 00:11:42]}
22. c4 {[%emt 00:01:45] [%clk 00:12:20]} Nf6 {[%emt 00:00:04] [%clk 00:11:48]}
23. Qc3 {[%emt 00:00:38] [%clk 00:11:52]} Rhe8 {[%emt 00:00:16]} 24. Bc2 {[%emt
00:00:21] [%clk 00:11:37]} Ng4 {[%emt 00:00:28] [%clk 00:11:28]} 25. f3 {[%emt
00:00:56] [%clk 00:10:50]} exd4 {[%emt 00:00:02] [%clk 00:11:36]} 26. Rxd4
{[%emt 00:03:07] [%clk 00:07:53]} Ne5 {[%emt 00:01:30] [%clk 00:10:15]} 27. Red1
{[%emt 00:00:30] [%clk 00:07:33]} f6 {[%emt 00:00:35] [%clk 00:09:50]} 28. Ne4
{[%emt 00:00:04] [%clk 00:07:38]} Nxf3 {[%emt 00:00:10] [%clk 00:09:50]} 29.
Qxf3 {[%emt 00:00:19] [%clk 00:07:30]} f5 {[%clk 00:09:59]} 30. Qf4 {[%emt
00:00:03] [%clk 00:07:37]} fxe4 {[%emt 00:00:06] [%clk 00:10:03]} 31. Bxe4
{[%emt 00:00:17] [%clk 00:07:30]} Bxe4+ {[%emt 00:01:02] [%clk 00:09:11]} 32.
Rxe4 {[%emt 00:00:02] [%clk 00:07:38]} Rxe4 {[%emt 00:00:30] [%clk 00:08:52]}
33. Qxe4 {[%emt 00:00:01] [%clk 00:07:46]} Qf7 {[%emt 00:00:07] [%clk 00:08:55]}
34. a3 {[%emt 00:00:19] [%clk 00:07:38]} Kc7 {[%emt 00:01:46] [%clk 00:07:19]}
35. Rd5 {[%emt 00:00:32] [%clk 00:07:16]} Qf1+ {[%emt 00:01:06] [%clk 00:06:24]}
36. Ka2 {[%emt 00:00:23] [%clk 00:07:03]} Re8 {[%emt 00:00:02] [%clk 00:06:32]}
37. Qd4 {[%emt 00:01:07] [%clk 00:06:06]} Re6 {[%emt 00:01:20] [%clk 00:05:22]}
38. Qg7+ {[%emt 00:00:07] [%clk 00:06:08]} Kc6 {[%emt 00:00:08] [%clk 00:05:25]}
39. Rd4 {[%emt 00:00:34] [%clk 00:05:44]} Qf6 {[%emt 00:01:34] [%clk 00:04:01]}
40. Qg8 {[%emt 00:00:15] [%clk 00:05:38]} Qe7 {[%emt 00:01:04] [%clk 00:03:08]}
41. Qc8+ {[%emt 00:00:08] [%clk 00:05:40]}

[Site "Europe Echecs"]

[Event "Championnat d'Europe Rapide"]
[Date "2024.12.07"]
[White "Fromm, Marius"]
[Black "Pantsulaia, Levan"]
[WhiteElo "2459"]
[BlackElo "2522"]
[Round "5.30"]
[Result "1-0"]
[TimeControl "900+10"]

1. e4 {[%clk 00:15:18]} c5 {[%emt 00:00:27] [%clk 00:14:48]} 2. Nf3 {[%emt
00:00:07] [%clk 00:15:26]} e6 {[%clk 00:14:57]} 3. d4 {[%emt 00:00:02] [%clk
00:15:35]} cxd4 {[%emt 00:00:01] [%clk 00:15:06]} 4. Nxd4 {[%clk 00:15:44]} a6
{[%clk 00:15:15]} 5. Bd3 {[%emt 00:00:02] [%clk 00:15:51]} d5 {[%emt 00:00:02]
[%clk 00:15:24]} 6. exd5 {[%emt 00:00:18] [%clk 00:15:43]} Qxd5 {[%emt 00:00:02]
[%clk 00:15:32]} 7. O-O {[%emt 00:00:23] [%clk 00:15:31]} Nd7 {[%emt 00:00:01]
[%clk 00:15:40]} 8. Be3 {[%emt 00:01:02] [%clk 00:14:39]} Bc5 {[%emt 00:00:21]
[%clk 00:15:29]} 9. Nc3 {[%emt 00:00:42] [%clk 00:14:07]} Qe5 {[%emt 00:00:02]
[%clk 00:15:37]} 10. Nf3 {[%emt 00:00:59] [%clk 00:13:18]} Qc7 {[%emt 00:00:02]
[%clk 00:15:45]} 11. Re1 {[%emt 00:01:34] [%clk 00:11:54]} Bxe3 {[%emt 00:00:14]
[%clk 00:15:41]} 12. Rxe3 {[%emt 00:00:02] [%clk 00:12:02]} Ngf6 {[%emt
00:00:01] [%clk 00:15:49]} 13. Ne4 {[%emt 00:01:53] [%clk 00:10:20]} Nd5 {[%emt
00:00:53] [%clk 00:15:05]} 14. Re1 {[%emt 00:00:04] [%clk 00:10:26]} O-O {[%emt
00:00:03] [%clk 00:15:11]} 15. c4 {[%emt 00:00:14] [%clk 00:10:23]} N5f6 {[%emt
00:00:20] [%clk 00:15:01]} 16. b4 {[%emt 00:00:51] [%clk 00:09:42]} Nxe4 {[%emt
00:00:20] [%clk 00:14:51]} 17. Rxe4 {[%emt 00:00:55] [%clk 00:08:57]} Nf6 {[%emt
00:00:02] [%clk 00:14:58]} 18. Rh4 {[%emt 00:00:31] [%clk 00:08:36]} Rd8 {[%emt
00:00:59] [%clk 00:14:10]} 19. Qc2 {[%emt 00:02:21] [%clk 00:06:25]} h6 {[%emt
00:00:02] [%clk 00:14:18]} 20. Rd1 {[%emt 00:00:39] [%clk 00:05:57]} b6 {[%emt
00:02:21] [%clk 00:12:07]} 21. Rd4 {[%emt 00:00:40] [%clk 00:05:27]} Rxd4 {[%emt
00:00:06] [%clk 00:12:10]} 22. Nxd4 {[%emt 00:00:02] [%clk 00:05:35]} Bb7 {[%emt
00:00:01] [%clk 00:12:19]} 23. Be2 {[%emt 00:00:45] [%clk 00:05:00]} Rd8 {[%emt
00:00:07] [%clk 00:12:21]} 24. a3 {[%emt 00:01:00] [%clk 00:04:11]} a5 {[%emt
00:00:56] [%clk 00:11:36]} 25. h3 {[%emt 00:01:25] [%clk 00:02:55]} axb4 {[%emt
00:00:04] [%clk 00:11:42]} 26. axb4 {[%clk 00:03:05]} Be4 {[%emt 00:04:08] [%clk
00:07:44]} 27. Qc1 {[%emt 00:00:31] [%clk 00:02:44]} Qb7 {[%emt 00:03:32] [%clk
00:04:22]} 28. f3 {[%emt 00:02:33] [%clk 00:00:21]} Bg6 {[%emt 00:00:11] [%clk
00:04:21]} 29. Nb5 {[%emt 00:00:09] [%clk 00:00:23]} Ra8 {[%emt 00:02:31] [%clk
00:01:59]} 30. Qe3 {[%emt 00:00:02] [%clk 00:00:31]} Qe7 {[%emt 00:01:16] [%clk
00:00:53]} 31. Nd6 {[%emt 00:00:26] [%clk 00:00:15]} Rb8 {[%emt 00:00:40] [%clk
00:00:23]} 32. Bf1 {[%emt 00:00:06] [%clk 00:00:20]} Kh7 {[%emt 00:00:04] [%clk
00:00:29]} 33. Qe5 {[%emt 00:00:12] [%clk 00:00:18]} Nd7 {[%emt 00:00:09] [%clk
00:00:30]} 34. Qd4 {[%emt 00:00:04] [%clk 00:00:24]} e5 {[%emt 00:00:06] [%clk
00:00:34]} 35. Nc8 {[%emt 00:00:21] [%clk 00:00:13]} Qxb4 {[%emt 00:00:16] [%clk
00:00:28]} 36. Qxd7 {[%emt 00:00:10] [%clk 00:00:13]} Qc5+ {[%emt 00:00:01]
[%clk 00:00:37]} 37. Kh2 {[%emt 00:00:05] [%clk 00:00:17]} Qxc8 {[%emt 00:00:16]
[%clk 00:00:33]} 38. Qd6 {[%emt 00:00:11] [%clk 00:00:16]} Qe8 {[%emt 00:00:24]
[%clk 00:00:19]} 39. Re1 {[%emt 00:00:14] [%clk 00:00:12]} f6 {[%emt 00:00:03]
[%clk 00:00:26]} 40. f4 {[%emt 00:00:09] [%clk 00:00:13]} e4 {[%emt 00:00:13]
[%clk 00:00:22]} 41. Qd4 {[%emt 00:00:06] [%clk 00:00:17]} Qd8 {[%emt 00:00:08]
[%clk 00:00:24]} 42. Qf2 {[%emt 00:00:15] [%clk 00:00:12]} Qd6 {[%emt 00:00:06]
[%clk 00:00:28]} 43. g3 {[%emt 00:00:07] [%clk 00:00:15]} f5 {[%emt 00:00:09]
[%clk 00:00:30]} 44. Rb1 {[%emt 00:00:08] [%clk 00:00:17]} Be8 {[%emt 00:00:17]
[%clk 00:00:22]} 45. Qe3 {[%emt 00:00:12] [%clk 00:00:16]} h5 {[%emt 00:00:11]
[%clk 00:00:21]} 46. Be2 {[%emt 00:00:01] [%clk 00:00:25]} g6 {[%emt 00:00:02]
[%clk 00:00:29]} 47. Kg2 {[%emt 00:00:04] [%clk 00:00:31]} Bf7 {[%emt 00:00:22]
[%clk 00:00:16]} 48. Rb5 {[%emt 00:00:17] [%clk 00:00:24]} Be8 {[%emt 00:00:09]
[%clk 00:00:17]} 49. Rd5 {[%emt 00:00:10] [%clk 00:00:23]} Qc7 {[%emt 00:00:03]
[%clk 00:00:24]} 50. g4 {[%emt 00:00:04] [%clk 00:00:29]} Bf7 {[%emt 00:00:11]
[%clk 00:00:23]} 51. Re5 {[%emt 00:00:13] [%clk 00:00:26]} Bxc4 {[%emt 00:00:04]
[%clk 00:00:29]} 52. gxf5 {[%emt 00:00:06] [%clk 00:00:30]} gxf5 {[%emt
00:00:05] [%clk 00:00:34]} 53. Rxf5 {[%emt 00:00:14] [%clk 00:00:26]} Qg7+
{[%emt 00:00:28] [%clk 00:00:15]} 54. Rg5 {[%emt 00:00:12] [%clk 00:00:26]} Qb2
{[%emt 00:00:13] [%clk 00:00:12]} 55. Qxe4+ {[%emt 00:00:02] [%clk 00:00:34]}
Kh8 {[%clk 00:00:21]} 56. Rxh5+ {[%emt 00:00:06] [%clk 00:00:38]} Kg8 {[%clk
00:00:30]} 57. Qxc4+ {[%emt 00:00:06] [%clk 00:00:43]} 1-0

[Site "Europe Echecs"]

[Event "Championnat d'Europe Rapide"]
[Date "2024.12.07"]
[White "Reprintsev, Alexander"]
[Black "Zajic, Milan"]
[WhiteElo "2230"]
[BlackElo "2392"]
[Round "5.31"]
[Result "0-1"]
[TimeControl "900+10"]

1. e4 {[%emt 00:00:40] [%clk 00:14:40]} g6 {[%emt 00:00:13] [%clk 00:15:07]} 2.
d4 {[%emt 00:00:05] [%clk 00:14:45]} Bg7 {[%emt 00:00:02] [%clk 00:15:16]} 3.
Nc3 {[%emt 00:00:01] [%clk 00:14:54]} a6 {[%emt 00:00:02] [%clk 00:15:25]} 4. h4
{[%emt 00:00:04] [%clk 00:14:59]} d5 {[%emt 00:01:36] [%clk 00:13:59]} 5. exd5
{[%emt 00:00:20] [%clk 00:14:48]} Nf6 {[%emt 00:00:02] [%clk 00:14:08]} 6. h5
{[%emt 00:00:42] [%clk 00:14:16]} Nxd5 {[%emt 00:00:28] [%clk 00:13:50]} 7. h6
{[%emt 00:00:09] [%clk 00:14:16]} Bf6 {[%emt 00:00:11] [%clk 00:13:49]} 8. Ne4
{[%emt 00:00:02] [%clk 00:14:25]} Bf5 {[%emt 00:00:52] [%clk 00:13:08]} 9. Nxf6+
{[%emt 00:00:13] [%clk 00:14:22]} Nxf6 {[%emt 00:00:07] [%clk 00:13:11]} 10. Nf3
{[%emt 00:01:23] [%clk 00:13:09]} O-O {[%emt 00:00:07] [%clk 00:13:13]} 11. Be2
{[%emt 00:02:30] [%clk 00:10:49]} c5 {[%emt 00:00:23] [%clk 00:13:01]} 12. c3
{[%emt 00:00:31] [%clk 00:10:27]} cxd4 {[%emt 00:00:07] [%clk 00:13:05]} 13.
Nxd4 {[%emt 00:00:06] [%clk 00:10:31]} Be4 {[%emt 00:00:16] [%clk 00:12:58]} 14.
f3 {[%emt 00:00:19] [%clk 00:10:22]} Bd5 {[%emt 00:00:14] [%clk 00:12:54]} 15.
c4 {[%emt 00:00:13] [%clk 00:10:19]} Bc6 {[%emt 00:00:12] [%clk 00:12:52]} 16.
Be3 {[%emt 00:00:17] [%clk 00:10:12]} Qc7 {[%emt 00:00:16] [%clk 00:12:46]} 17.
Kf2 {[%emt 00:01:34] [%clk 00:08:49]} e5 {[%emt 00:00:24] [%clk 00:12:32]} 18.
Nxc6 {[%emt 00:00:50] [%clk 00:08:08]} Nxc6 {[%emt 00:00:02] [%clk 00:12:40]}
19. Qb3 {[%emt 00:00:04] [%clk 00:08:15]} Nd4 {[%emt 00:00:19] [%clk 00:12:31]}
20. Bxd4 {[%emt 00:00:16] [%clk 00:08:09]} exd4 {[%emt 00:00:02] [%clk
00:12:39]} 21. Rad1 {[%emt 00:00:10] [%clk 00:08:08]} Qf4 {[%emt 00:00:20] [%clk
00:12:30]} 22. Kg1 {[%emt 00:01:37] [%clk 00:06:41]} Rae8 {[%emt 00:02:06] [%clk
00:10:34]} 23. Bf1 {[%emt 00:00:02] [%clk 00:06:49]} Nh5 {[%emt 00:01:35] [%clk
00:09:09]} 24. Qd3 {[%emt 00:01:14] [%clk 00:05:46]} Qe3+ {[%emt 00:01:00] [%clk
00:08:19]} 25. Qxe3 {[%emt 00:00:02] [%clk 00:05:53]} dxe3 {[%emt 00:00:02]
[%clk 00:08:28]} 26. Bd3 {[%emt 00:00:29] [%clk 00:05:34]} Nf4 {[%emt 00:00:37]
[%clk 00:08:00]} 27. Be4 {[%emt 00:00:05] [%clk 00:05:39]} f5 {[%emt 00:02:15]
[%clk 00:05:56]} 28. Bxb7 {[%emt 00:00:33] [%clk 00:05:16]} e2 {[%emt 00:00:27]
[%clk 00:05:38]} 29. Re1 {[%emt 00:00:02] [%clk 00:05:24]} Nd3 {[%emt 00:00:02]
[%clk 00:05:46]} 30. Kh2 {[%emt 00:00:04] [%clk 00:05:30]} g5 {[%emt 00:00:13]
[%clk 00:05:43]} 31. g3 {[%emt 00:02:56] [%clk 00:02:45]} Rf6 {[%emt 00:00:19]
[%clk 00:05:35]} 32. Kg2 {[%emt 00:00:02] [%clk 00:02:52]} Rxh6 {[%emt 00:00:18]
[%clk 00:05:27]} 33. Rhg1 {[%emt 00:00:13] [%clk 00:02:49]} Kf8 {[%emt 00:01:04]
[%clk 00:04:33]} 34. a3 {[%emt 00:00:51] [%clk 00:02:08]} Rb6 {[%emt 00:00:25]
[%clk 00:04:18]} 0-1

[Site "Europe Echecs"]

[Event "Championnat d'Europe Rapide"]
[Date "2024.12.07"]
[White "Kozul, Zdenko"]
[Black "Upleger, Martin"]
[WhiteElo "2519"]
[BlackElo "2297"]
[Round "5.32"]
[Result "1-0"]
[TimeControl "900+10"]

1. d4 {[%emt 00:00:03] [%clk 00:15:16]} Nf6 {[%emt 00:00:03] [%clk 00:15:18]} 2.
Nf3 {[%emt 00:00:01] [%clk 00:15:24]} e6 {[%emt 00:00:11] [%clk 00:15:18]} 3. c4
{[%emt 00:00:01] [%clk 00:15:33]} d5 {[%emt 00:00:02] [%clk 00:15:27]} 4. g3
{[%emt 00:00:02] [%clk 00:15:41]} dxc4 {[%emt 00:00:28] [%clk 00:15:08]} 5. Bg2
{[%emt 00:00:02] [%clk 00:15:49]} Nc6 {[%emt 00:00:17] [%clk 00:15:02]} 6. O-O
{[%emt 00:00:03] [%clk 00:15:56]} Rb8 {[%emt 00:00:05] [%clk 00:15:07]} 7. Nc3
{[%emt 00:00:09] [%clk 00:15:57]} Be7 {[%emt 00:00:18] [%clk 00:15:00]} 8. Qa4
{[%emt 00:00:26] [%clk 00:15:40]} O-O {[%emt 00:01:14] [%clk 00:13:57]} 9. Qxc4
{[%emt 00:00:15] [%clk 00:15:34]} Nd5 {[%emt 00:00:05] [%clk 00:14:01]} 10. Rd1
{[%emt 00:00:39] [%clk 00:15:05]} Na5 {[%emt 00:00:54] [%clk 00:13:18]} 11. Qd3
{[%emt 00:00:19] [%clk 00:14:56]} b6 {[%emt 00:00:23] [%clk 00:13:06]} 12. Bd2
{[%emt 00:01:58] [%clk 00:13:07]} Nb4 {[%emt 00:01:00] [%clk 00:12:17]} 13. Qb1
{[%emt 00:00:02] [%clk 00:13:14]} Ba6 {[%emt 00:00:29] [%clk 00:11:58]} 14. Be1
{[%emt 00:01:26] [%clk 00:11:58]} Nd5 {[%emt 00:01:26] [%clk 00:10:42]} 15. e4
{[%emt 00:00:18] [%clk 00:11:49]} Nxc3 {[%emt 00:00:40] [%clk 00:10:13]} 16.
Bxc3 {[%emt 00:00:01] [%clk 00:11:58]} Bf6 {[%emt 00:00:15] [%clk 00:10:08]} 17.
b3 {[%emt 00:01:06] [%clk 00:11:01]} c5 {[%emt 00:02:32] [%clk 00:07:46]} 18. e5
{[%emt 00:03:03] [%clk 00:08:08]} Be7 {[%emt 00:00:02] [%clk 00:07:55]} 19. dxc5
{[%emt 00:00:01] [%clk 00:08:17]} Qc7 {[%clk 00:08:04]} 20. Bxa5 {[%emt
00:00:11] [%clk 00:08:16]} bxa5 {[%emt 00:00:02] [%clk 00:08:12]} 21. c6 {[%emt
00:00:01] [%clk 00:08:24]} Rfd8 {[%emt 00:01:26] [%clk 00:06:55]} 22. Qc2 {[%emt
00:00:08] [%clk 00:08:26]} g6 {[%emt 00:01:26] [%clk 00:05:39]} 23. Rxd8+ {[%emt
00:02:56] [%clk 00:05:41]} Rxd8 {[%emt 00:00:02] [%clk 00:05:47]} 24. Bf1 {[%emt
00:00:01] [%clk 00:05:49]} Bxf1 {[%emt 00:00:38] [%clk 00:05:20]} 25. Kxf1
{[%clk 00:05:58]} Rc8 {[%emt 00:00:01] [%clk 00:05:29]} 26. Rc1 {[%emt 00:00:07]
[%clk 00:06:00]} Ba3 {[%emt 00:01:44] [%clk 00:03:55]} 27. Rd1 {[%emt 00:00:01]
[%clk 00:06:09]} Qxc6 {[%emt 00:00:04] [%clk 00:04:00]} 28. Rd8+ {[%emt
00:00:30] [%clk 00:05:49]} 1-0

[Site "Europe Echecs"]

[Event "Championnat d'Europe Rapide"]
[Date "2024.12.07"]
[White "Alonso Rosell, Alvar"]
[Black "Zawadzka, Jolanta"]
[WhiteElo "2532"]
[BlackElo "2331"]
[Round "5.33"]
[Result "1-0"]
[TimeControl "900+10"]

1. d4 {[%emt 00:00:03] [%clk 00:15:17]} d5 {[%clk 00:15:19]} 2. Nf3 {[%emt
00:00:02] [%clk 00:15:25]} Nf6 {[%emt 00:00:02] [%clk 00:15:27]} 3. e3 {[%emt
00:00:03] [%clk 00:15:34]} c6 {[%emt 00:00:13] [%clk 00:15:23]} 4. h3 {[%emt
00:01:36] [%clk 00:14:08]} e6 {[%emt 00:00:30] [%clk 00:15:02]} 5. Bd3 {[%emt
00:00:18] [%clk 00:14:00]} Nbd7 {[%emt 00:00:05] [%clk 00:15:07]} 6. b3 {[%emt
00:00:17] [%clk 00:13:54]} Bd6 {[%emt 00:00:19] [%clk 00:14:57]} 7. Bb2 {[%emt
00:00:03] [%clk 00:14:01]} Qc7 {[%emt 00:00:06] [%clk 00:15:02]} 8. c4 {[%emt
00:00:59] [%clk 00:13:12]} O-O {[%emt 00:00:13] [%clk 00:14:59]} 9. Nbd2 {[%emt
00:00:30] [%clk 00:12:52]} Re8 {[%emt 00:00:57] [%clk 00:14:12]} 10. Qc2 {[%emt
00:00:47] [%clk 00:12:16]} h6 {[%emt 00:00:30] [%clk 00:13:51]} 11. c5 {[%emt
00:01:36] [%clk 00:10:51]} Bf8 {[%emt 00:00:14] [%clk 00:13:46]} 12. g4 {[%emt
00:00:04] [%clk 00:10:57]} b6 {[%emt 00:01:31] [%clk 00:12:25]} 13. g5 {[%emt
00:00:18] [%clk 00:10:49]} Nh5 {[%emt 00:06:03] [%clk 00:06:32]} 14. gxh6 {[%emt
00:01:10] [%clk 00:09:50]} bxc5 {[%emt 00:00:03] [%clk 00:06:40]} 15. hxg7
{[%emt 00:00:41] [%clk 00:09:18]} Bxg7 {[%emt 00:00:06] [%clk 00:06:43]} 16. Rg1
{[%emt 00:00:14] [%clk 00:09:14]} Kf8 {[%emt 00:00:26] [%clk 00:06:27]} 17. Be2
{[%emt 00:00:36] [%clk 00:08:48]} Nhf6 {[%emt 00:00:19] [%clk 00:06:18]} 18. Ne5
{[%emt 00:02:15] [%clk 00:06:43]} Bh8 {[%emt 00:02:35] [%clk 00:03:53]} 19.
O-O-O {[%emt 00:02:18] [%clk 00:04:36]} a5 {[%emt 00:00:42] [%clk 00:03:21]} 20.
Ndf3 {[%emt 00:01:41] [%clk 00:03:05]} Ne4 {[%emt 00:00:25] [%clk 00:03:06]} 21.
Nxd7+ {[%emt 00:00:36] [%clk 00:02:39]} Bxd7 {[%emt 00:00:23] [%clk 00:02:53]}
22. Ng5 {[%emt 00:00:07] [%clk 00:02:42]} Nxg5 {[%emt 00:02:19] [%clk 00:00:44]}
23. Qxc5+ {[%emt 00:00:03] [%clk 00:02:48]} Re7 {[%emt 00:00:04] [%clk
00:00:50]} 24. Rxg5 {[%emt 00:00:52] [%clk 00:02:06]} Bf6 {[%emt 00:00:02] [%clk
00:00:58]} 25. Rg3 {[%emt 00:01:16] [%clk 00:01:01]} a4 {[%emt 00:00:50] [%clk
00:00:18]} 26. Rdg1 {[%emt 00:00:05] [%clk 00:01:05]} 1-0

[Site "Europe Echecs"]

[Event "Championnat d'Europe Rapide"]
[Date "2024.12.07"]
[White "Krallis, Christos"]
[Black "Guliyev, Namig"]
[WhiteElo "2383"]
[BlackElo "2484"]
[Round "5.34"]
[Result "1-0"]
[TimeControl "900+10"]

1. e4 {[%emt 00:00:09] [%clk 00:15:10]} c5 {[%emt 00:00:02] [%clk 00:15:19]} 2.
Nf3 {[%emt 00:00:03] [%clk 00:15:16]} d6 {[%emt 00:00:02] [%clk 00:15:27]} 3. d4
{[%emt 00:00:04] [%clk 00:15:22]} cxd4 {[%emt 00:00:02] [%clk 00:15:35]} 4. Nxd4
{[%emt 00:00:03] [%clk 00:15:29]} Nf6 {[%emt 00:00:01] [%clk 00:15:44]} 5. Nc3
{[%emt 00:00:03] [%clk 00:15:36]} a6 {[%emt 00:00:02] [%clk 00:15:53]} 6. Bc4
{[%emt 00:00:06] [%clk 00:15:39]} e6 {[%emt 00:00:03] [%clk 00:16:00]} 7. Bb3
{[%emt 00:00:04] [%clk 00:15:45]} Nbd7 {[%emt 00:00:45] [%clk 00:15:26]} 8. f4
{[%emt 00:00:07] [%clk 00:15:47]} Nc5 {[%emt 00:00:07] [%clk 00:15:30]} 9. e5
{[%emt 00:00:12] [%clk 00:15:44]} dxe5 {[%emt 00:00:15] [%clk 00:15:26]} 10.
fxe5 {[%emt 00:00:03] [%clk 00:15:50]} Nxb3 {[%emt 00:00:02] [%clk 00:15:34]}
11. axb3 {[%emt 00:00:18] [%clk 00:15:42]} Nd5 {[%emt 00:00:22] [%clk 00:15:23]}
12. O-O {[%emt 00:01:05] [%clk 00:14:45]} Bc5 {[%emt 00:00:14] [%clk 00:15:19]}
13. Ne4 {[%emt 00:00:22] [%clk 00:14:32]} Bxd4+ {[%emt 00:01:05] [%clk
00:14:25]} 14. Qxd4 {[%emt 00:00:03] [%clk 00:14:38]} O-O {[%emt 00:00:03] [%clk
00:14:33]} 15. Bg5 {[%emt 00:01:44] [%clk 00:13:03]} Qb6 {[%emt 00:00:06] [%clk
00:14:38]} 16. Qxb6 {[%emt 00:01:03] [%clk 00:12:09]} Nxb6 {[%emt 00:00:02]
[%clk 00:14:47]} 17. Nd6 {[%emt 00:00:15] [%clk 00:12:04]} Nd5 {[%emt 00:01:10]
[%clk 00:13:47]} 18. c4 {[%emt 00:00:43] [%clk 00:11:31]} h6 {[%emt 00:00:01]
[%clk 00:13:55]} 19. Bd2 {[%emt 00:01:36] [%clk 00:10:04]} Ne7 {[%emt 00:00:16]
[%clk 00:13:50]} 20. b4 {[%emt 00:00:41] [%clk 00:09:33]} Nf5 {[%emt 00:00:19]
[%clk 00:13:41]} 21. b5 {[%emt 00:02:49] [%clk 00:06:54]} Nxd6 {[%emt 00:00:44]
[%clk 00:13:07]} 22. exd6 {[%emt 00:00:03] [%clk 00:07:01]} Bd7 {[%emt 00:00:01]
[%clk 00:13:16]} 23. bxa6 {[%emt 00:00:15] [%clk 00:06:56]} bxa6 {[%emt
00:00:01] [%clk 00:13:25]} 24. Ba5 {[%emt 00:00:15] [%clk 00:06:50]} Rfb8 {[%emt
00:01:39] [%clk 00:11:56]} 25. b4 {[%emt 00:00:42] [%clk 00:06:18]} e5 {[%emt
00:00:14] [%clk 00:11:53]} 26. Rfb1 {[%emt 00:01:00] [%clk 00:05:28]} Bf5 {[%emt
00:00:04] [%clk 00:11:59]} 27. Rb2 {[%emt 00:01:22] [%clk 00:04:15]} Kf8 {[%emt
00:01:02] [%clk 00:11:07]} 28. Bc7 {[%emt 00:00:19] [%clk 00:04:06]} Rc8 {[%emt
00:00:48] [%clk 00:10:30]} 29. b5 {[%emt 00:01:10] [%clk 00:03:06]} axb5 {[%emt
00:03:58] [%clk 00:06:42]} 30. Rxa8 {[%emt 00:00:03] [%clk 00:03:12]} Rxa8
{[%emt 00:00:01] [%clk 00:06:51]} 31. cxb5 {[%emt 00:00:02] [%clk 00:03:20]} Ke8
{[%emt 00:00:01] [%clk 00:07:01]} 32. b6 {[%emt 00:00:07] [%clk 00:03:22]} Bc8
{[%emt 00:00:16] [%clk 00:06:55]} 33. b7 {[%emt 00:00:16] [%clk 00:03:16]} Bxb7
{[%emt 00:00:02] [%clk 00:07:03]} 34. Rxb7 {[%emt 00:00:02] [%clk 00:03:24]}
Ra1+ {[%emt 00:00:01] [%clk 00:07:11]} 35. Kf2 {[%emt 00:00:02] [%clk 00:03:32]}
Kd7 {[%emt 00:00:29] [%clk 00:06:53]} 36. Bb8+ {[%emt 00:00:18] [%clk 00:03:24]}
Kc8 {[%emt 00:00:06] [%clk 00:06:58]} 37. d7+ {[%emt 00:00:07] [%clk 00:03:27]}
Kd8 {[%emt 00:00:18] [%clk 00:06:50]} 38. Bc7+ {[%emt 00:00:15] [%clk 00:03:21]}
Kxd7 {[%emt 00:00:04] [%clk 00:06:56]} 39. Bxe5+ {[%emt 00:00:02] [%clk
00:03:29]} 1-0

[Site "Europe Echecs"]